Cogmind - Beta 15 @@@ ROGUE MODE // 2025.08.08 @ 10:29:30 Player: Minty Result: Self-destructed Performance ------------- Evolutions (7) 3500 Regions Visited (20) 4000 Robots Destroyed (237) 1185 Value Destroyed (10771) 10771 Prototype IDs (62) 1240 Alien Tech Used (2) 400 Bonus (6826) 6826 TOTAL SCORE: 27922 Bonus ------- Triggered Max Security 1000 High Alert Combat Kills 1285 Follower Combat Kills 102 Entered Garrisons 200 Aligned with FarCom 300 Met Zhirov 300 Met Warlord at Base 500 MAIN.C Attacked Warlord 500 Warlord Defense Kills 2734 Friendly Fire -95 Cogmind --------- Core Integrity 1058/1300 Matter 260/300 Energy 100/100 System Corruption 17% Temperature Cool (0) Movement Core (50) Location -3/Testing Parts ------- > --- POWER (3) -------- (None) > --- PROPULSION (5) --- (None) > --- UTILITY (9) ------ (None) > --- WEAPON (4) ------- (None) > --- INVENTORY (5) ---- Advanced Energy Well (500) Core Analyzer Kinecellerator Improved Force Field Minesniffer Drone Bay (10/10) Peak State ------------ > --- POWER ------------ Reinforced Fission Core Vortex Chain Reactor > --- PROPULSION ------- Advanced Myomer Leg Advanced Myomer Leg Enhanced Biometal Leg Enhanced Biometal Leg Enhanced Biometal Leg > --- UTILITY ---------- Experimental Coolant Injector Medium Storage Unit Enhanced Optical Array Advanced Targeting Computer Experimental Targeting Computer Experimental Armor Integrity Analyzer Thermal Barrier Advanced Remote Shield > --- WEAPON ----------- Cooled Proton Cannon Chain Missile Launcher > --- INVENTORY -------- Cooled Fission Core Advanced Cooling System Advanced Energy Well Trap Reconfigurator Minesniffer Drone Bay Minesniffer Drone Bay Minesniffer Drone Bay Cooled Proton Cannon Micro-nuke Launcher Vibroblade [Rating: 156] Favorites ----------- Power Fission Core Engine Light Angular Momentum Engine Power Core Fission Core Reactor Fusion Reactor Propulsion Advanced Myomer Leg Treads Improved Heavy Treads Leg Advanced Myomer Leg Wheel Wheel Utility Advanced Targeting Computer Device Advanced Heat Sink Storage Medium Storage Unit Processor Advanced Targeting Computer Hackware Advanced Hacking Suite Protection Improved Medium Armor Plating Weapon Cooled Proton Cannon Energy Gun EM Pulse Gun Energy Cannon Cooled Proton Cannon Ballistic Gun Assault Rifle Ballistic Cannon Hardcell Cannon Launcher Mini Grenade Launcher Special Weapon Molecular Deconstructor Slashing Weapon Vibroblade Build | -11 -10 -10 -10 -9 -8 -7 -7 -6 -5 -5 -5 -5 -4 -4 -4 -4 -4 -3 -3 -3 ------- Run | Yrd Mat Min Exi Min Mat Fac Gar Fac Fac Upp Upp Zhi Pro Fac Upp Upp War Pro Res Tes Slots Evolved 14 | . . . . . 4 2 . 2 2 . . . . 2 . . . . 2 . Power 2 | . . . . . . . . 1 1 . . . . . . . . . . . Propulsion 3 | . . . . . 1 1 . . 1 . . . . . . . . . . . Utility 7 | . . . . . 3 1 . 1 . . . . . 1 . . . . 1 . Weapon 2 | . . . . . . . . . . . . . . 1 . . . . 1 . Parts Attached 178 | . 1 2 1 1 26 15 4 31 13 4 . 7 2 13 1 8 22 2 23 2 Power 29 | . . 1 . . 1 1 . 8 2 . . 1 . 2 . 3 4 . 6 . Engine 6 | . . 1 . . 1 1 . . 1 . . . . . . . . . 2 . Core 15 | . . . . . . . . 7 1 . . . . 2 . 3 2 . . . Reactor 8 | . . . . . . . . 1 . . . 1 . . . . 2 . 4 . Propulsion 39 | . . . . . 8 2 2 1 5 3 . 3 1 2 . 1 5 . 6 . Treads 10 | . . . . . 3 2 2 1 . . . . . . . . . . 2 . Leg 26 | . . . . . 2 . . . 5 3 . 3 1 2 . 1 5 . 4 . Wheel 3 | . . . . . 3 . . . . . . . . . . . . . . . Hover . | . . . . . . . . . . . . . . . . . . . . . Flight . | . . . . . . . . . . . . . . . . . . . . . Utility 63 | . . 1 . . 10 9 . 12 4 1 . 2 1 5 . 2 8 2 5 1 Device 30 | . . 1 . . 6 4 . 5 3 . . 1 1 1 . . 5 1 2 . Storage 6 | . . . . . 1 1 . . . 1 . 1 . 1 . . . . 1 . Processor 13 | . . . . . 2 3 . 1 . . . . . 1 . 1 3 1 1 . Hackware 6 | . . . . . 1 . . 3 . . . . . 1 . . . . . 1 Protection 8 | . . . . . . 1 . 3 1 . . . . 1 . 1 . . 1 . Artifact . | . . . . . . . . . . . . . . . . . . . . . Weapon 47 | . 1 . 1 1 7 3 2 10 2 . . 1 . 4 1 2 5 . 6 1 Energy Gun 11 | . 1 . . . 1 1 1 3 . . . . . . . . . . 4 . Energy Cannon 23 | . . . . . 3 2 1 4 2 . . . . 3 . 1 4 . 2 1 Ballistic Gun 4 | . . . 1 . 2 . . 1 . . . . . . . . . . . . Ballistic Cannon 3 | . . . . . . . . 2 . . . . . . . 1 . . . . Launcher 4 | . . . . 1 1 . . . . . . . . . 1 . 1 . . . Special Weapon 1 | . . . . . . . . . . . . 1 . . . . . . . . Impact Weapon . | . . . . . . . . . . . . . . . . . . . . . Slashing Weapon 1 | . . . . . . . . . . . . . . 1 . . . . . . Piercing Weapon . | . . . . . . . . . . . . . . . . . . . . . Special Melee Weapon . | . . . . . . . . . . . . . . . . . . . . . Unidentified Prototypes 31 | . . . . . 2 1 . 5 1 . . 6 . 2 1 . 11 . 2 . Corrupted Parts 18 | . . . . . . . 2 2 4 2 . . 1 . . 2 2 1 2 . System Corruption 111 | . . . . . . . 17 10 21 20 . . 2 . . 9 13 5 14 . Parts Lost 66 | . . 2 . . 9 . . 15 . . . . 1 3 3 10 1 10 11 1 Power 16 | . . 1 . . 1 . . 4 . . . . 1 2 . 3 . 2 2 . Propulsion 18 | . . . . . 3 . . 3 . . . . . . . 3 . 3 5 1 Utility 18 | . . . . . 4 . . 4 . . . . . 1 3 2 . 3 1 . Weapon 14 | . . 1 . . 1 . . 4 . . . . . . . 2 1 2 3 . Highest Loss Streak 8 | . . 2 . . 6 . . 7 . . . . 1 1 3 4 1 8 4 1 To Critical Strikes 3 | . . . . . . . . . . . . . . . 1 . 1 . . 1 Average Backups 10 | . 6 7 7 8 8 16 19 17 4 5 6 8 8 8 8 8 9 7 6 9 Power . | . 1 . . . . 1 2 3 . . . . . . . . . 1 . . Propulsion . | . 4 4 4 4 3 . . . . . . . . . . . . . . . Utility 4 | . . 1 1 2 2 8 10 7 2 3 4 6 5 4 4 1 3 6 6 8 Weapon 3 | . 1 1 2 2 2 6 7 5 1 1 2 . 2 3 3 3 3 . . . Tool/Special . | . . . . . . . . . . . . . . . . . . . . . Unused Backups 34 | . 5 1 . . . 3 2 8 . . . 2 1 2 . 2 4 . . 4 Power 4 | . 1 1 . . . . . 2 . . . . . . . . . . . . Propulsion 3 | . 2 . . . . . . . . . . . 1 . . . . . . . Utility 18 | . 1 . . . . 3 2 4 . . . 2 . 2 . . . . . 4 Weapon 5 | . 1 . . . . . . 2 . . . . . . . 2 . . . . Tool/Special 4 | . . . . . . . . . . . . . . . . . 4 . . . Average Slot Usage (%) 88 | . 85 91 97 100 89 97 94 84 76 100 100 90 100 99 98 82 89 82 77 76 Engine 2 | . 14 14 14 14 8 7 7 . 3 5 5 5 5 3 . . . . . . Core 7 | . . . . . . . . 12 8 11 11 11 8 6 10 11 10 4 2 . Reactor 1 | . . . . . . . . . . . . . 1 5 5 2 2 4 3 13 Treads 4 | . . . . . 14 11 14 12 . . . . . . . . . . 2 3 Leg 15 | . 28 28 28 28 8 . . . 14 29 29 29 29 26 26 19 20 24 11 6 Wheel 1 | . . . . . 1 17 10 . . . . . . . . . . . . . Device 12 | . . 10 14 14 15 15 15 13 17 20 17 17 17 16 9 2 11 13 12 3 Storage 6 | . 14 14 14 14 9 7 7 6 . 2 5 5 5 5 5 8 7 5 7 3 Processor 14 | . . . . . 6 15 15 15 11 11 11 11 11 10 15 16 20 21 19 17 Hackware 1 | . . . . . 7 . . . 8 . . . . 3 5 2 . . . 2 Protection 3 | . . . . . . 5 7 9 . 5 5 5 5 5 4 3 . . . 3 Energy Gun 1 | . 28 23 14 14 1 . . . . . . . . . . . . . 3 10 Energy Cannon 9 | . . . . . 11 12 10 11 8 11 11 1 11 10 9 10 13 4 4 6 Slashing Weapon 1 | . . . . . . . . . . . . . . 4 4 1 . 3 3 . Peak Build Rating 156 | . 6 9 10 11 44 50 65 90 84 90 87 105 103 122 124 120 156 143 144 113 Average Rating 87 | . 6 8 9 10 22 44 50 77 65 86 86 88 101 118 118 99 123 131 114 101 On Entrance 62 | 6 6 6 9 10 10 30 50 65 32 84 86 87 101 102 121 104 86 144 59 106 Naked Turns 8 | . . . . . . . . . . . . . . . . . . . . 8 Heaviest Build 120 | 12 12 13 13 13 46 73 74 90 64 73 73 73 73 89 69 99 120 92 96 103 Greatest Support 150 | 20 20 20 20 20 60 36 150 150 83 98 98 133 133 138 138 135 150 120 110 45 Greatest Overweight (x) 13 | . . . . . 4 3 3 1 13 . . . . . . 1 1 . 2 3 Average Overweight (x) . | . . . . . . 2 2 . . . . . . . . . . . . 1 Largest Inventory Capacity 20 | . 8 8 8 8 15 20 20 20 5 10 10 10 10 10 10 10 10 10 10 10 Average Capacity 12 | . 8 8 8 8 13 18 20 19 5 7 10 10 10 10 10 10 10 10 10 9 Most Carried 20 | . 7 8 8 8 12 20 20 20 5 7 8 10 10 10 10 10 10 9 10 10 Average Carried 11 | . 6 7 7 8 8 16 19 18 4 5 7 9 9 9 9 9 9 7 6 9 Final Capacity 20 | 8 8 8 8 8 15 20 20 5 5 10 10 10 10 10 10 10 10 10 10 5 Final Carried 20 | 6 7 8 8 8 9 20 20 5 5 7 8 10 9 10 10 10 9 9 10 5 Class Distribution -------------------- 44% | Scavenger-Mutant 25% | Mutant 18% | Scavenger-Gunner 4% | Gunner 3% | Skirmisher Dominant Class ---------------- Mutant | -10/Materials Mutant | -10/Mines Mutant | -10/Exiles Mutant | -9/Mines Skirmisher | -8/Materials Mutant | -7/Factory Mutant | -7/Garrison Scavenger-Mutant | -6/Factory Scavenger-Mutant | -5/Factory Scavenger-Mutant | -5/Upper Caves Scavenger-Mutant | -5/Upper Caves Scavenger-Mutant | -5/Zhirov Scavenger-Mutant | -4/Proximity Caves Scavenger-Mutant | -4/Factory Scavenger-Mutant | -4/Upper Caves Scavenger-Mutant | -4/Upper Caves Scavenger-Gunner | -4/Warlord Scavenger-Mutant | -3/Proximity Caves Mutant | -3/Research Scavenger-Gunner | -3/Testing Resources | -11 -10 -10 -10 -9 -8 -7 -7 -6 -5 -5 -5 -5 -4 -4 -4 -4 -4 -3 -3 -3 ----------- Run | Yrd Mat Min Exi Min Mat Fac Gar Fac Fac Upp Upp Zhi Pro Fac Upp Upp War Pro Res Tes Matter Collected 5154 | 200 10 12 . 12 214 495 360 859 359 92 15 . 255 269 106 606 497 182 611 . Remotely . | . . . . . . . . . . . . . . . . . . . . . Salvage Created 10801 | . 40 . . 18 476 335 828 2898 628 188 187 . 260 1086 165 845 625 558 1524 140 Parts 454 | . 4 . . 4 29 8 39 131 14 10 5 . 5 54 7 26 20 21 68 9 Haulers Intercepted 6 | . . . . . . . . 4 . . . . . 1 . . . . 1 . Recyclers Shooed 5 | . . 1 . . 1 1 . 1 . . . . . 1 . . . . . . Parts Field Recycled . | . . . . . . . . . . . . . . . . . . . . . Retrieved Matter . | . . . . . . . . . . . . . . . . . . . . . Parts Self-Destructed 37 | . . . . . . . . . . 7 2 . 1 . 8 14 . 5 . . Prevented 36 | . . . . . . . . . . 5 3 . 6 . . 5 . 17 . . Kills | -11 -10 -10 -10 -9 -8 -7 -7 -6 -5 -5 -5 -5 -4 -4 -4 -4 -4 -3 -3 -3 ------- Run | Yrd Mat Min Exi Min Mat Fac Gar Fac Fac Upp Upp Zhi Pro Fac Upp Upp War Pro Res Tes Combat Hostiles Destroyed 170 | . . . . 3 11 3 24 34 7 3 1 . 4 11 5 16 18 10 18 2 Melee 11 | . . . . . 1 . . . . . . . . . . 2 . 1 7 . Guns 9 | . . . . . 3 . . 3 . . . . . . . . . . 3 . Cannons 56 | . . . . . 2 2 1 14 4 2 1 . 3 4 2 1 6 7 5 2 AOE 72 | . . . . 3 4 . 23 13 3 . . . . 2 3 10 11 . . . Classes Destroyed 26 | . 1 . . 1 5 1 2 5 2 . 1 . 1 . 1 1 4 . 1 . Worker 15 | . . . . . 1 . . 11 . . . . . 1 . . . . 2 . Builder 19 | . . . . . 2 . . 10 . . . . . 7 . . . . . . Tunneler 1 | . . . . . . . . 1 . . . . . . . . . . . . Hauler 6 | . . . . . . . . 4 . . . . . 1 . . . . 1 . Recycler 9 | . . . . . . 2 . 4 1 . . . . 1 . . . . 1 . Carrier 1 | . . . . . . . . . 1 . . . . . . . . . . . Minesweeper 2 | . . . . . . . . . . . . . . . 1 1 . . . . Mechanic 1 | . . . . . . . . . . . . . . . . . . . 1 . Operator 10 | . 2 . . . 2 . . 4 1 . . . . 1 . . . . . . Drone 1 | . . . . . . . . . . . . . 1 . . . . . . . Watcher 3 | . . . . . . . . 1 . . . . . 2 . . . . . . Swarmer 38 | . . . . 3 . . 12 3 . . . . . 2 4 4 . 7 3 . Saboteur 1 | . . . . . . . . . 1 . . . . . . . . . . . Grunt 72 | . . . . . 7 2 10 18 4 . . . 3 . . 8 10 2 8 . Brawler 6 | . . . . . . . 1 1 2 . . . . . . . 1 1 . . Duelist 2 | . . . . . . . 1 . . . . . . . . . 1 . . . Protector 1 | . . . . . . . . . . . . . . . . . 1 . . . Sentry 12 | . . . . . 3 1 . 3 . . 1 . . 1 1 1 . . 1 . Specialist 1 | . . . . . . . . . . . . . . . . . 1 . . . Hunter 13 | . . . . . . . . 2 . 3 . . . 4 . . . . 2 2 Programmer 18 | . . . . . . . . 7 . . . . . 4 . 2 1 . 4 . Heavy 1 | . . . . . 1 . . . . . . . . . . . . . . . Behemoth 1 | . . . . . . . . . . . . . . . . 1 . . . . Striker 1 | . . . . . . . . . . . . . . . . . 1 . . . Executioner 2 | . . . . . . . . . . . . . . . . . 2 . . . Decomposer 4 | . . . . . . . . . . . . . . . 3 1 . . . . Packrat 1 | . . . . . . . . . . . . . . . . . . 1 . . Samaritan 3 | . . . . . . . . . . . 2 . . . . 1 . . . . Best Kill Streak 12 | . 2 . . 3 4 2 12 11 5 2 1 . 3 5 4 6 6 7 6 2 Combat Bots Only 12 | . . . . 3 3 2 12 5 4 2 1 . 3 3 4 6 6 7 3 2 Max Kills in Single Turn 7 | . 1 . . 3 2 1 4 7 4 1 1 . 1 5 2 2 3 1 2 1 Gunslinging . | . . . . . . . . . . . . . . . . . . . . . Exploded 4 | . . . . 3 2 . 4 2 3 . . . . 2 2 2 3 . . . Melee 1 | . . . . . 1 . . . . . . . . . . 1 . 1 1 . Uniques/NPCs Destroyed . | . . . . . . . . . . . . . . . . . . . . . Combat | -11 -10 -10 -10 -9 -8 -7 -7 -6 -5 -5 -5 -5 -4 -4 -4 -4 -4 -3 -3 -3 -------- Run | Yrd Mat Min Exi Min Mat Fac Gar Fac Fac Upp Upp Zhi Pro Fac Upp Upp War Pro Res Tes Hostile Shots Fired 1254 | . 1 6 . 6 118 35 33 334 8 36 4 . 22 119 16 125 108 123 144 16 Missed 425 | . 1 1 . 4 32 15 13 102 1 8 4 . 9 48 6 39 39 49 50 4 Hits 829 | . . 5 . 2 86 20 20 232 7 28 . . 13 71 10 86 69 74 94 12 Melee 5 | . . . . . . . . 3 . . . . . . . . 1 1 . . Projectile 824 | . . 5 . 2 86 20 20 229 7 28 . . 13 71 10 86 68 73 94 12 AOE 9 | . . 5 . . . . . 1 . . . . . 2 . . 1 . . . Critical Strikes 45 | . . . . . 8 . 1 12 1 . . . 3 2 2 2 6 2 4 2 Actively Blocked 2 | . . . . . . . . 1 1 . . . . . . . . . . . Part Disruptions 4 | . . . . . . . . . . . . . . 2 . 1 1 . . . Damage Taken 14531 | . . 223 . 20 1666 205 370 3715 180 327 15 . 188 1026 166 2013 1062 1330 1824 201 Core 1898 | . . 68 . 10 471 10 28 364 85 40 . . 15 98 11 173 128 155 186 56 Absorbed by Shields 1646 | . . . . . . . . 451 17 122 5 . 73 378 37 . 350 213 . . Redirected to Shielding 203 | . . . . . . . . 102 . . . . . . . 101 . . . . Ignored by Resistances 856 | . . . . . . . . . . . . . . . . . 484 188 131 53 Regen/Repaired (Parts) 671 | . . . . . . . . 83 . . . . . 67 . . 354 . 167 . Core Remaining (%) 66 | 100 . . . 68 14 . 94 57 . . . . 86 . . . . 45 . . Volleys Fired 404 | . 4 5 . 1 36 12 27 126 13 12 5 . 17 27 6 25 22 20 39 7 Largest 4 | . 2 2 . 1 2 2 2 2 2 2 2 . 2 3 2 3 3 1 4 2 Hottest 424 | . 80 80 . 30 130 138 138 195 171 171 171 . 116 206 133 295 205 120 424 195 Shots Fired 716 | . 8 8 . 1 71 24 46 203 25 21 8 . 27 59 9 50 46 21 76 13 Gun 118 | . 8 8 . . 31 . . 43 . . . . . . . . . . 28 . Cannon 524 | . . . . . 30 24 20 143 25 21 8 . 27 59 6 41 39 20 48 13 Launcher 72 | . . . . 1 10 . 26 17 . . . . . . 2 8 7 1 . . Special 2 | . . . . . . . . . . . . . . . 1 1 . . . . Kinetic 77 | . . . . . 25 . . 46 . . . . . . . 6 . . . . Thermal 300 | . . . . . 30 . . 96 13 9 5 . 13 46 6 15 9 . 45 13 Explosive 72 | . . . . 1 10 . 26 17 . . . . . . 2 8 7 1 . . Electromagnetic 239 | . 8 8 . . 6 24 20 44 12 12 3 . 14 13 . 20 4 20 31 . Entropic 26 | . . . . . . . . . . . . . . . . . 26 . . . Robot Hit Streak 19 | . 2 3 . 4 10 12 14 19 7 3 2 . 7 9 8 17 9 4 10 7 Robot Miss Streak 5 | . 2 3 . . 3 1 1 3 2 3 1 . 5 2 . 1 2 2 1 2 Penetration Max 2 | . . . . . . . . 2 . . . . . . . . . . . . Secondary Targets 1 | . . . . . . . . 1 . . . . . . . . . . . . Max Gunslinging Chain 1 | . . . . . . . . 1 . . . . . . . . . . . . Shots Hit Robots 524 | . 4 4 . 1 54 18 25 137 15 11 4 . 15 45 11 45 34 16 77 8 Core Hits 398 | . 2 4 . 2 30 6 56 108 10 4 4 . 5 18 9 30 62 12 32 4 Critical Kills 10 | . . . . . 1 . . 6 . . . . 1 1 1 . . . . . Critical Parts Destroyed 13 | . . . . . 1 . . 12 . . . . . . . . . . . . Critical Strikes 42 | . . . . . 2 . 1 18 . . . . 2 3 1 2 10 1 2 . Burn 1 | . . . . . . . . . . . . . . . . . . . 1 . Meltdown 6 | . . . . . 1 . . 2 . . . . 1 1 1 . . . . . Destroy 17 | . . . . . 1 . . 16 . . . . . . . . . . . . Corrupt 6 | . . . . . . . 1 . . . . . 1 1 . 1 1 1 . . Sever 3 | . . . . . . . . . . . . . . 1 . 1 . . 1 . Sunder 9 | . . . . . . . . . . . . . . . . . 9 . . . Melee Attacks 71 | . . . . . . . . . . . . . . 25 7 7 . 6 26 . Impact . | . . . . . . . . . . . . . . . . . . . . . Slashing 71 | . . . . . . . . . . . . . . 25 7 7 . 6 26 . Piercing . | . . . . . . . . . . . . . . . . . . . . . Sneak Attacks 16 | . . . . . . . . . . . . . . 8 4 1 . 1 2 . Combat Hostiles . | . . . . . . . . . . . . . . . . . . . . . Follow-up Attacks . | . . . . . . . . . . . . . . . . . . . . . Damage Inflicted 33509 | . 119 52 . 170 1638 521 2593 7818 1163 412 206 . 553 3502 970 3272 5265 1288 3686 281 Guns 1930 | . 63 44 . . 470 . . 366 . . . . . . . . . . 987 . Cannons 14007 | . . . . . 673 521 398 3124 570 412 146 . 553 1806 128 1253 2022 769 1351 281 Explosions 14058 | . 56 . . 168 459 . 2195 4241 518 . 37 . . 674 417 1634 3238 280 141 . Melee 3235 | . . . . . . . . . . . . . . 1022 425 346 . 239 1203 . Ramming 279 | . . 8 . 2 36 . . 87 75 . 23 . . . . 39 5 . 4 . Kinetic 1040 | . . . . . 398 . . 459 . . . . . . . 183 . . . . Thermal 10825 | . 56 . . . 673 . 72 3813 796 169 33 . 288 2065 128 653 218 . 1580 281 Explosive 10610 | . . . . 168 459 . 2123 2555 . . . . . . 417 1370 3238 280 . . Electromagnetic 5885 | . 63 44 . . 72 521 398 904 292 243 150 . 265 415 . 681 169 769 899 . Impact . | . . . . . . . . . . . . . . . . . . . . . Slashing 3235 | . . . . . . . . . . . . . . 1022 425 346 . 239 1203 . Piercing . | . . . . . . . . . . . . . . . . . . . . . Entropic 1635 | . . . . . . . . . . . . . . . . . 1635 . . . Highest Corruption 43 | . . . . . . . 17 7 21 41 41 41 43 5 . 19 19 29 17 17 Average Corruption 18 | . . . . . . . 16 6 20 36 41 41 41 3 . 14 14 16 15 17 Corruption Purged 4 | . . . . . . . . 4 . . . . . . . . . . . . Corruption Blocked . | . . . . . . . . . . . . . . . . . . . . . Effects 215 | . . . . . . . 5 7 17 25 13 15 20 25 . 40 4 19 17 8 Message Errors 50 | . . . . . . . 1 1 6 3 4 6 2 8 . 7 1 5 4 2 Matter Fused 40 | . . . . . . . 2 1 3 4 1 3 5 5 . 12 . 1 1 2 Heat Flow Errors 23 | . . . . . . . . . 2 3 2 2 2 3 . 5 . 3 1 . Energy Discharges 26 | . . . . . . . . 2 2 2 2 1 2 3 . 2 1 5 2 2 Parts Rejected 2 | . . . . . . . . . . . . . . . . . 1 . 1 . Parts Fused 3 | . . . . . . . . . . . . 2 . . . . . . 1 . Data Loss (minor) 24 | . . . . . . . 1 2 1 3 1 1 . 3 . 8 1 2 1 . Data Loss (major) 19 | . . . . . . . . . 2 5 . . 2 1 . 4 . 1 3 1 Misfires 6 | . . . . . . . . . . . . . 1 1 . 2 . 1 1 . Alerts 5 | . . . . . . . . . 1 2 1 . . . . . . 1 . . Misdirections 2 | . . . . . . . . . . . . . . . . . . . 2 . Weapon Failures 15 | . . . . . . . 1 1 . 3 2 . 6 1 . . . . . 1 Overload Shots 32 | . . . . . . . . 5 . . . . . 3 . 6 3 7 8 . Effects 1 | . . . . . . . . . . . . . . . . . 1 . . . Energy Bleed 1 | . . . . . . . . . . . . . . . . . 1 . . . Overflow Damage 2221 | . . . . 21 36 13 14 502 129 41 18 . . 464 268 244 141 80 250 . Projectiles 464 | . . . . . 31 13 . 35 36 41 . . . 22 12 44 68 71 91 . Explosions 777 | . . . . 21 5 . 14 467 89 . . . . 41 8 50 73 9 . . Melee 980 | . . . . . . . . . 4 . 18 . . 401 248 150 . . 159 . Knockbacks 5 | . . . . . . . . 4 1 . . . . . . . . . . . Impact 3 | . . . . . . . . 2 1 . . . . . . . . . . . Kinetic 2 | . . . . . . . . 2 . . . . . . . . . . . . Secondary . | . . . . . . . . . . . . . . . . . . . . . Self-Inflicted Damage 607 | . . . . . 19 . 69 181 65 . 20 . . . . 181 . 72 . . Shots 14 | . . . . . 1 . 2 3 1 . 1 . . . . 5 . 1 . . Rammed 16 | . . . . . 8 . . 8 . . . . . . . . . . . . Targets Rammed 30 | . . 1 . 2 9 . . 8 5 . 1 . . . . 1 2 . 1 . Kicked 13 | . . 1 . 2 . . . . 5 . 1 . . . . 1 2 . 1 . Crushed 1 | . . . . . 1 . . . . . . . . . . . . . . . Highest Temperature 459 | . 54 . . . 77 93 63 459 198 196 177 136 133 171 12 329 199 190 300 381 Average Temperature 75 | . 25 . . . 23 33 21 81 98 88 76 68 85 45 8 77 62 77 97 198 Received Heat Transfer 3421 | . . 15 . . 612 87 81 1290 63 . . . 22 6 15 623 211 83 313 . Effects 5 | . . . . . . . . 3 . . . . . . . . . . . 2 Shutdowns 3 | . . . . . . . . 2 . . . . . . . . . . . 1 Energy Bleed 1 | . . . . . . . . . . . . . . . . . . . . 1 Damage (minor) 1 | . . . . . . . . 1 . . . . . . . . . . . . Siege Activations . | . . . . . . . . . . . . . . . . . . . . . Martial Activations . | . . . . . . . . . . . . . . . . . . . . . Shielding Activations . | . . . . . . . . . . . . . . . . . . . . . Robots Disrupted . | . . . . . . . . . . . . . . . . . . . . . Combat Hostiles . | . . . . . . . . . . . . . . . . . . . . . Robots Corrupted 21 | . . . . . . 1 2 3 . 1 1 . . 3 . 4 1 2 3 . Combat Hostiles 16 | . . . . . . 1 . 2 . 1 . . . 3 . 3 1 2 3 . Parts Fried 67 | . . . . . . 6 5 10 6 4 4 . 4 7 . 3 2 10 6 . Impact Corruptions 5 | . . . . . . . . . 1 . 2 . . . . 2 . . . . Robots Melted 8 | . . . . . 1 . . 2 . . . . 1 3 1 . . . . . Combat Hostiles 6 | . . . . . 1 . . 2 . . . . 1 2 . . . . . . Parts Melted 21 | . . . . . 5 . . 5 . . . . 1 8 1 . . . 1 . Heat Transferred 11555 | . 100 . . . 925 . 100 4255 546 185 37 . 450 1823 200 725 203 . 1710 296 Parts Sabotaged 3 | . . . . . . . . . . . . . . . . . 3 . . . Parts Stolen . | . . . . . . . . . . . . . . . . . . . . . Parts Stripped . | . . . . . . . . . . . . . . . . . . . . . Power Chain Reactions 5 | . 1 . . . . . 1 1 . . 1 . . . . . . . 1 . Alert | -11 -10 -10 -10 -9 -8 -7 -7 -6 -5 -5 -5 -5 -4 -4 -4 -4 -4 -3 -3 -3 ------- Run | Yrd Mat Min Exi Min Mat Fac Gar Fac Fac Upp Upp Zhi Pro Fac Upp Upp War Pro Res Tes Maximum Alert Level 5 | . . . . . . . 3 4 3 . . . . 3 . . . . . 5 Low Security (%) 39 | . 100 100 . 100 100 100 27 . . . . . . . . . . . 100 . Level 1 13 | . . . . . . . 10 32 . . . . . 14 . . . . . . Level 2 20 | . . . . . . . 20 27 2 . . . . 70 . . . . . . Level 3 22 | . . . . . . . 40 32 97 . . . . 15 . . . . . . Level 4 2 | . . . . . . . . 7 . . . . . . . . . . . . Level 5 . | . . . . . . . . . . . . . . . . . . . . . High Security . | . . . . . . . . . . . . . . . . . . . . . Max Security 1 | . . . . . . . . . . . . . . . . . . . . 99 Peak Influence 1648 | . 24 15 . 80 140 56 729 1598 943 . . . . 768 . . . . 184 1648 Initial 768 | . . 5 . . 19 38 8 382 767 . . . . 768 . . . . . 83 Average 430 | . 4 2 . 29 70 12 449 679 784 . . . . 531 . . . . 65 1606 Influence Increases 7149 | . 39 15 . 120 419 159 721 2116 382 70 20 . 80 1275 115 390 394 260 516 58 Destroy 0b10 Robot/C 3420 | . . . . 60 220 60 480 680 160 60 20 . 60 220 100 320 380 200 360 40 Destroy 0b10 Robot/NC 355 | . 10 . . . 25 10 10 175 10 . . . 5 65 5 10 5 . 25 . Destroy Leader 558 | . . . . 10 70 20 40 180 20 10 . . . 56 10 30 . 30 72 10 Allied During Kill 9 | . . . . . . . . . . . . . . . . . 9 . . . Trap Triggered on 0b10 90 | . 20 . . . 10 10 . 20 . . . . . 10 . . . . 20 . Successful Hack 118 | . 5 . . . 20 44 . 19 30 . . . . . . . . . . . Disable Machine 780 | . . . . . 15 15 15 555 90 . . . . 90 . . . . . . Anti-Garrison Action 250 | . . . . . . . 100 150 . . . . . . . . . . . . Destroy Structure 519 | . 4 . . 5 59 . 76 217 72 . . . . 54 . . . . 24 8 Advance Influence 750 | . . . . . . . . . . . . . . 750 . . . . . . Lose Combat Pursuer 300 | . . 15 . 45 . . . 120 . . . . 15 30 . 30 . 30 15 . Influence Decreases 7018 | . 25 29 . 70 383 233 4 1277 1047 541 183 269 50 782 446 582 131 523 367 76 Entered New Map 2500 | . . 9 . . 31 48 4 347 801 335 83 269 . 12 194 38 . 263 . 66 Time Decay 3464 | . 25 20 . 70 262 185 . 630 246 206 100 . 50 440 222 480 91 180 257 . Search Patrol Dispatched 300 | . . . . . . . . . . . . . . 300 . . . . . . Lost Part 574 | . . . . . 90 . . 150 . . . . . 30 30 64 10 80 110 10 Lost Ally 30 | . . . . . . . . . . . . . . . . . 30 . . . Purge Threat 150 | . . . . . . . . 150 . . . . . . . . . . . . Squads Dispatched 49 | . 2 . . . 5 2 . 19 4 . . . . 7 . . . . 4 6 Investigation 15 | . 1 . . . . 1 . 6 1 . . . . 4 . . . . 2 . Extermination 10 | . . . . . . 1 . 4 1 . . . . 2 . . . . 2 . Reinforcement 14 | . 1 . . . 5 . . 6 1 . . . . 1 . . . . . . Assault 10 | . . . . . . . . 3 1 . . . . . . . . . . 6 Garrison . | . . . . . . . . . . . . . . . . . . . . . Intercept . | . . . . . . . . . . . . . . . . . . . . . Searches Triggered 2 | . . . . . . . . . . . . . . 2 . . . . . . Construction Impeded 6 | . . . . . 1 . . 3 1 . . . . 1 . . . . . . Haulers Reinforced 2 | . . . . . . . . 2 . . . . . . . . . . . . Active Scanning Responses . | . . . . . . . . . . . . . . . . . . . . . Cargo Convoy Interrupts . | . . . . . . . . . . . . . . . . . . . . . Stealth | -11 -10 -10 -10 -9 -8 -7 -7 -6 -5 -5 -5 -5 -4 -4 -4 -4 -4 -3 -3 -3 --------- Run | Yrd Mat Min Exi Min Mat Fac Gar Fac Fac Upp Upp Zhi Pro Fac Upp Upp War Pro Res Tes Distress Signals 10 | . . . . . 2 . . 2 . . . . . 2 . . 2 . 2 . Communications Jammed . | . . . . . . . . . . . . . . . . . . . . . Distress Signals . | . . . . . . . . . . . . . . . . . . . . . Times Spotted 289 | . 4 4 . 4 17 3 18 59 5 4 1 . 9 18 5 18 69 15 26 10 Peak Tracking Total 15 | . 2 2 . 3 6 2 5 5 3 2 1 . 3 5 4 6 15 5 5 7 Tactical Retreats 18 | . . 1 . 2 . . . 7 . . . . 1 2 . 2 . 2 1 . Traps | -11 -10 -10 -10 -9 -8 -7 -7 -6 -5 -5 -5 -5 -4 -4 -4 -4 -4 -3 -3 -3 ------- Run | Yrd Mat Min Exi Min Mat Fac Gar Fac Fac Upp Upp Zhi Pro Fac Upp Upp War Pro Res Tes Traps Triggered 5 | . . . . . . . . 2 . . . . . 3 . . . . . . Indirectly . | . . . . . . . . . . . . . . . . . . . . . Trap Hack Attempts . | . . . . . . . . . . . . . . . . . . . . . Triggered . | . . . . . . . . . . . . . . . . . . . . . Disarmed . | . . . . . . . . . . . . . . . . . . . . . Reprogrammed 6 | . 6 . . . . . . . . . . . . . . . . . . . Reused 10 | . 2 . . . 1 1 . 2 . . . . . 1 . 1 . . 2 . Traps Reconfigurated 39 | . . . . . 4 1 6 16 3 . . . . 5 . . . . 4 . Traps Extracted . | . . . . . . . . . . . . . . . . . . . . . Installed 1 | . . . . . . . . . . . . . . . . 1 . . . . Triggered 10 | . 2 . . . 1 1 . 2 . . . . . 1 . 1 . . 2 . Most Traps Carried 1 | . . . . . . . . . . . . . . . 1 1 . . . . Machines | -11 -10 -10 -10 -9 -8 -7 -7 -6 -5 -5 -5 -5 -4 -4 -4 -4 -4 -3 -3 -3 ---------- Run | Yrd Mat Min Exi Min Mat Fac Gar Fac Fac Upp Upp Zhi Pro Fac Upp Upp War Pro Res Tes Machines Disabled 60 | . . . . . 1 1 2 38 6 1 . . . 6 . 4 1 . . . Max in Single Turn 12 | . . . . . 1 1 1 12 5 1 . . . 3 . 2 1 . . . Garrison Access 1 | . . . . . . . . 1 . . . . . . . . . . . . Garrison Relay 1 | . . . . . . . 1 . . . . . . . . . . . . . Machines Repaired . | . . . . . . . . . . . . . . . . . . . . . Machines Dismantled . | . . . . . . . . . . . . . . . . . . . . . Machines Sabotaged . | . . . . . . . . . . . . . . . . . . . . . Overloaded Fab Kills . | . . . . . . . . . . . . . . . . . . . . . Hacking | -11 -10 -10 -10 -9 -8 -7 -7 -6 -5 -5 -5 -5 -4 -4 -4 -4 -4 -3 -3 -3 --------- Run | Yrd Mat Min Exi Min Mat Fac Gar Fac Fac Upp Upp Zhi Pro Fac Upp Upp War Pro Res Tes Machines Accessed 41 | . 2 . 2 . 4 4 1 8 2 . . 4 . 7 . 1 3 . 3 . Terminals 17 | . 2 . . . 4 1 1 4 2 . . . . 2 . . . . 1 . Fabricators 3 | . . . . . . 1 . 2 . . . . . . . . . . . . Repair Stations 7 | . . . . . . 1 . 2 . . . . . 2 . . . . 2 . Recycling Units 2 | . . . . . . . . . . . . . . 2 . . . . . . Scanalyzers 1 | . . . . . . . . . . . . . . 1 . . . . . . Garrison Access 1 | . . . . . . 1 . . . . . . . . . . . . . . Total Hacks 121 | . 6 . 2 . 14 15 1 27 6 . . 17 . 20 . 1 5 . 7 . Successful 66 | . 3 . 2 . 8 7 1 10 3 . . 17 . 8 . 1 5 . 1 . Failed 55 | . 3 . . . 6 8 . 17 3 . . . . 12 . . . . 6 . Catastrophic 9 | . 1 . . . 1 1 . 2 1 . . . . 1 . . . . 2 . Database Lockouts . | . . . . . . . . . . . . . . . . . . . . . Manual 48 | . 3 . 1 . 9 8 1 12 1 2 . . . 6 . . . . 5 . Terminals 56 | . 6 . . . 14 3 1 18 6 . . . . 6 . . . . 2 . Fabricators 11 | . . . . . . 8 . 3 . . . . . . . . . . . . Repair Stations 17 | . . . . . . 3 . 6 . . . . . 3 . . . . 5 . Recycling Units 9 | . . . . . . . . . . . . . . 9 . . . . . . Scanalyzers 2 | . . . . . . . . . . . . . . 2 . . . . . . Garrison Access 1 | . . . . . . 1 . . . . . . . . . . . . . . Terminal Hacks 41 | . 2 . 2 . 5 1 . 6 2 . . 17 . . . 1 5 . . . Record 9 | . . . 1 . . . . . . . . 5 . . . . 3 . . . Part Schematic 4 | . . . . . . . . . . . . 4 . . . . . . . . Robot Analysis 4 | . . . . . . . . . . . . 4 . . . . . . . . Prototype ID Bank 4 | . . . . . . . . . . . . 4 . . . . . . . . Open Door 3 | . . . . . . . . . . . . . . . . 1 2 . . . Branch Access Points 3 | . . . . . 1 . . 1 1 . . . . . . . . . . . Terminal Index 2 | . . . . . 1 . . 1 . . . . . . . . . . . . Alert Level 2 | . . . . . . 1 . 1 . . . . . . . . . . . . Unreport Threat 1 | . . . . . . . . 1 . . . . . . . . . . . . Locate Traps 3 | . 1 . . . 1 . . 1 . . . . . . . . . . . . Reprogram Traps 1 | . 1 . . . . . . . . . . . . . . . . . . . Patrol Status 2 | . . . . . 1 . . . 1 . . . . . . . . . . . Recall Reinforcements 1 | . . . . . 1 . . . . . . . . . . . . . . . Zone Layout 1 | . . . . . . . . 1 . . . . . . . . . . . . Proto ID Catalog 1 | . . . 1 . . . . . . . . . . . . . . . . . Fabricator Hacks 1 | . . . . . . 1 . . . . . . . . . . . . . . Network Status 1 | . . . . . . 1 . . . . . . . . . . . . . . Repair Station Hacks 4 | . . . . . . 1 . 2 . . . . . 1 . . . . . . Scan Component 3 | . . . . . . 1 . 1 . . . . . 1 . . . . . . Repair 1 | . . . . . . . . 1 . . . . . . . . . . . . Recycling Unit Hacks 3 | . . . . . . . . . . . . . . 3 . . . . . . Report Inventory 2 | . . . . . . . . . . . . . . 2 . . . . . . Retrieve Components 1 | . . . . . . . . . . . . . . 1 . . . . . . Scanalyzer 2 | . . . . . . . . . . . . . . 2 . . . . . . Insert Component 1 | . . . . . . . . . . . . . . 1 . . . . . . Analyze 1 | . . . . . . . . . . . . . . 1 . . . . . . Garrison Access Hacks 1 | . . . . . . 1 . . . . . . . . . . . . . . Unlock Access 1 | . . . . . . 1 . . . . . . . . . . . . . . Unauthorized Hacks 14 | . 1 . . . 3 3 1 2 1 . . . . 2 . . . . 1 . Terminals 8 | . 1 . . . 3 1 1 1 1 . . . . . . . . . . . Botnet 6 | . 1 . . . 2 1 . 1 1 . . . . . . . . . . . Skim 1 | . . . . . 1 . . . . . . . . . . . . . . . Override 1 | . . . . . . . 1 . . . . . . . . . . . . . Fabricators 2 | . . . . . . 2 . . . . . . . . . . . . . . Liberate 1 | . . . . . . 1 . . . . . . . . . . . . . . Fabnet 1 | . . . . . . 1 . . . . . . . . . . . . . . Repair Stations 4 | . . . . . . . . 1 . . . . . 2 . . . . 1 . Patch 4 | . . . . . . . . 1 . . . . . 2 . . . . 1 . Recycling Units . | . . . . . . . . . . . . . . . . . . . . . Scanalyzers . | . . . . . . . . . . . . . . . . . . . . . Garrison Access . | . . . . . . . . . . . . . . . . . . . . . Data Cores Recovered 4 | . 1 . . . 1 . . 2 . . . . . . . . . . . . Used 2 | . . . . . 1 . . 1 . . . . . . . . . . . . Hacking Detections 24 | . 2 . . . 4 3 . 7 2 . . . . 4 . . . . 2 . Full Trace Events 11 | . 1 . . . . 1 . 5 1 . . . . 2 . . . . 1 . Feedback Events . | . . . . . . . . . . . . . . . . . . . . . Feedback Blocked . | . . . . . . . . . . . . . . . . . . . . . Robot Schematics Acquired . | . . . . . . . . . . . . . . . . . . . . . Robots Built . | . . . . . . . . . . . . . . . . . . . . . Authchips . | . . . . . . . . . . . . . . . . . . . . . Time . | . . . . . . . . . . . . . . . . . . . . . Total Robot Build Rating . | . . . . . . . . . . . . . . . . . . . . . Part Schematics Acquired 5 | . . . . . . . . . . . . 4 . 1 . . . . . . Parts Built . | . . . . . . . . . . . . . . . . . . . . . Authchips . | . . . . . . . . . . . . . . . . . . . . . Time . | . . . . . . . . . . . . . . . . . . . . . Total Part Build Rating . | . . . . . . . . . . . . . . . . . . . . . Parts Repaired 1 | . . . . . . . . 1 . . . . . . . . . . . . Time 61 | . . . . . . . . 61 . . . . . . . . . . . . Parts Recycled . | . . . . . . . . . . . . . . . . . . . . . Recycled Matter . | . . . . . . . . . . . . . . . . . . . . . Retrieved Matter . | . . . . . . . . . . . . . . . . . . . . . Retrieved Components 3 | . . . . . . . . . . . . . . 3 . . . . . . Parts Scanalyzed 1 | . . . . . . . . . . . . . . 1 . . . . . . Part Schematics Acquired 1 | . . . . . . . . . . . . . . 1 . . . . . . Parts Damaged . | . . . . . . . . . . . . . . . . . . . . . Bothacking | -11 -10 -10 -10 -9 -8 -7 -7 -6 -5 -5 -5 -5 -4 -4 -4 -4 -4 -3 -3 -3 ------------ Run | Yrd Mat Min Exi Min Mat Fac Gar Fac Fac Upp Upp Zhi Pro Fac Upp Upp War Pro Res Tes Used RIF Installer . | . . . . . . . . . . . . . . . . . . . . . Robots Hacked 1 | . . . . . . . . 1 . . . . . . . . . . . . Non-combat . | . . . . . . . . . . . . . . . . . . . . . Combat 1 | . . . . . . . . 1 . . . . . . . . . . . . Robot Hacks Applied . | . . . . . . . . . . . . . . . . . . . . . Relay Couplers Released 9 | . . . . . . . 3 6 . . . . . . . . . . . . Machine Destruction 5 | . . . . . . . 3 2 . . . . . . . . . . . . Programmers 4 | . . . . . . . . 4 . . . . . . . . . . . . Fabnet Peak Effective % 3 | . . . . . . . . 3 1 1 1 1 . . . . . . . . Autooverrided 1 | . . . . . . . . 1 . . . . . . . . . . . . Robots Rewired 2 | . . . . . . . . . . . . . . . . . 2 . . . Allies Hacked 1 | . . . . . . . . . . . . . . . . . 1 . . . Hacks Repelled . | . . . . . . . . . . . . . . . . . . . . . Allies | -11 -10 -10 -10 -9 -8 -7 -7 -6 -5 -5 -5 -5 -4 -4 -4 -4 -4 -3 -3 -3 -------- Run | Yrd Mat Min Exi Min Mat Fac Gar Fac Fac Upp Upp Zhi Pro Fac Upp Upp War Pro Res Tes Total Allies 6 | . . 3 . . . . . 1 . . . . . . . . 2 . . . Largest Group 3 | . . 3 . . . . . 1 . . . . . . . . 2 . . . Highest-Rated Group 132 | . . 40 . . . . . 32 . . . . . . . . 132 . . . Highest-Rated Ally 68 | . . 16 . . . . . 32 . . . . . . . . 68 . . . Total Orders 2 | . . . . . . . . . . . . . . . . . . . 2 . EXPLORE 1 | . . . . . . . . . . . . . . . . . . . 1 . RETURN 1 | . . . . . . . . . . . . . . . . . . . 1 . Ally Attacks 22 | . . 13 . . . . . . . . . . . . . . 9 . . . Total Damage 661 | . . 141 . . . . . . . . . . . . . . 520 . . . Kills 2 | . . . . . . . . . . . . . . . . . 2 . . . Allies Corrupted 1 | . . . . . . . . . . . . . . . . . 1 . . . Allies Melted . | . . . . . . . . . . . . . . . . . . . . . Intel | -11 -10 -10 -10 -9 -8 -7 -7 -6 -5 -5 -5 -5 -4 -4 -4 -4 -4 -3 -3 -3 ------- Run | Yrd Mat Min Exi Min Mat Fac Gar Fac Fac Upp Upp Zhi Pro Fac Upp Upp War Pro Res Tes Active Infowar (turns) 10334 | . . . . . 441 298 393 1382 521 420 211 312 256 1083 474 1685 1507 392 836 123 Optics 8764 | . . . . . 7 184 . 753 521 420 211 312 256 1083 474 1685 1507 392 836 123 A.S.S. 2 | . . . . . 2 . . . . . . . . . . . . . . . Terrain 382 | . . . . . 382 . . . . . . . . . . . . . . . Traps 1296 | . . . . . 62 114 393 727 . . . . . . . . . . . . Robot Analysis Total 4 | . . . . . . . . . . . . 4 . . . . . . . . Derelict Logs Recovered 5 | . . . . 2 . . . . . . 1 . . . . 2 . . . . Drone Launches 10 | . . . . . . . . . . . . . . . . . . . 10 . Drone Recoveries 10 | . . . . . . . . . . . . . . . . . . . 10 . Exploration | -11 -10 -10 -10 -9 -8 -7 -7 -6 -5 -5 -5 -5 -4 -4 -4 -4 -4 -3 -3 -3 ------------- Run | Yrd Mat Min Exi Min Mat Fac Gar Fac Fac Upp Upp Zhi Pro Fac Upp Upp War Pro Res Tes Turns Passed 12444 | . 83 185 258 185 602 706 401 2196 521 420 211 312 256 1083 474 1685 1507 392 836 131 Spaces Moved 7563 | 1 57 135 214 149 193 513 210 945 350 302 160 229 166 699 348 1147 911 319 469 46 Core 151 | . . . . . . . . 5 132 . . . . . . . . . . 14 Treads 1115 | . . . . . 104 . 64 940 . . . . . . . . . . . 7 Legs 5622 | 1 57 135 214 149 73 . . . 218 302 160 229 166 699 348 1147 911 319 469 25 Wheels 675 | . . . . . 16 513 146 . . . . . . . . . . . . . Hover . | . . . . . . . . . . . . . . . . . . . . . Flight . | . . . . . . . . . . . . . . . . . . . . . Fastest Speed 50 | 120 120 120 120 120 86 86 125 50 50 120 120 120 120 120 120 120 105 100 100 50 Average Speed 129 | 120 120 120 120 120 159 115 135 160 115 120 120 120 120 120 120 134 137 103 118 217 Slowest Speed 700 | 120 120 120 120 120 240 125 160 240 700 120 120 120 120 120 120 190 190 105 260 400 Overloaded Moves . | . . . . . . . . . . . . . . . . . . . . . Propulsion Burnouts . | . . . . . . . . . . . . . . . . . . . . . Robots Hopped . | . . . . . . . . . . . . . . . . . . . . . Potential Cave-ins . | . . . . . . . . . . . . . . . . . . . . . Cave-ins Triggered . | . . . . . . . . . . . . . . . . . . . . . Teleports 1 | . . . . . . . . . . . . . . . 1 . . . . . Exploration Rate (%) 39 | 2 14 38 61 51 21 14 40 39 7 57 38 61 46 23 60 90 90 59 11 11 Regions Visited 20 Branch Regions 12 Pre-discovered Areas 5 | . . . 1 . . . . . . . . 3 . . . 1 . . . . Known Exits Taken 4 | . . . . . 1 1 . . 1 . . . . . . . . 1 . . Unknown Exits Taken 15 | 1 1 1 1 1 . . . 1 . 1 1 1 1 1 1 1 1 . 1 . Scrap Searched 9 | . . . . . . . . . . . 1 . 1 . 1 5 . 1 . . Spaces Dug 31 | . . . . . . . . 11 . . . . . 13 3 . . 3 1 . Terrain Destroyed 835 | . 4 . . 5 86 . 110 262 60 3 4 . 4 26 36 102 81 37 12 3 Melee 18 | . . . . . . . . . . . . . . 11 3 . . 3 1 . Projectile 73 | . . . . . 3 . . 27 4 3 4 . 4 13 1 3 3 1 4 3 AOE 744 | . 4 . . 5 83 . 110 235 56 . . . . 2 32 99 78 33 7 . Terrain Rammed . | . . . . . . . . . . . . . . . . . . . . . Walls Destroyed . | . . . . . . . . . . . . . . . . . . . . . Machines Disabled . | . . . . . . . . . . . . . . . . . . . . . Actions | -11 -10 -10 -10 -9 -8 -7 -7 -6 -5 -5 -5 -5 -4 -4 -4 -4 -4 -3 -3 -3 --------- Run | Yrd Mat Min Exi Min Mat Fac Gar Fac Fac Upp Upp Zhi Pro Fac Upp Upp War Pro Res Tes Total 9305 | . 63 149 215 153 398 601 276 1415 437 337 169 265 193 847 383 1235 1119 351 637 62 Wait 690 | . 1 5 . . 119 15 21 217 46 10 3 . 3 60 8 10 115 . 53 4 Move 7544 | . 56 134 213 148 192 513 209 944 349 301 159 228 165 698 347 1146 910 318 468 46 Hop . | . . . . . . . . . . . . . . . . . . . . . Pick Up 96 | . 1 2 1 . 2 25 1 18 5 2 1 7 2 7 3 6 7 . 6 . Fast Attach 88 | . . 1 . . 13 2 2 4 9 . . 4 . 2 2 13 14 1 19 2 Attach 57 | . . 1 1 . 5 1 . 16 4 . . 1 1 3 3 6 5 3 7 . Detach 30 | . . . . . 5 . . 5 1 . . 2 . . . 5 5 3 4 . Swap 184 | . 1 . . 2 17 19 10 49 2 7 . 12 2 18 3 9 22 . 10 1 Drop 106 | . . . . . . 14 6 28 3 5 . 11 3 7 4 6 13 . 4 2 Fire 404 | . 4 5 . 1 36 12 27 126 13 12 5 . 17 27 6 25 22 20 39 7 Melee 71 | . . . . . . . . . . . . . . 25 7 7 . 6 26 . Ram . | . . . . . . . . . . . . . . . . . . . . . Kick 13 | . . 1 . 2 . . . . 5 . 1 . . . . 1 2 . 1 . Crush 17 | . . . . . 9 . . 8 . . . . . . . . . . . . Escape Stasis . | . . . . . . . . . . . . . . . . . . . . . Rewire 4 | . . . . . . . . . . . . . . . . . 4 . . . Trap 1 | . . . . . . . . . . . . . . . . 1 . . . . Miscellaneous . | . . . . . . . . . . . . . . . . . . . . . Route ------- -11/Scrapyard -10/Materials -10/Mines -10/Exiles -9/Mines -8/Materials -7/Factory (discovered 2 exits: *Low / Gar) -7/Garrison (discovered 3 exits: *Fac x3) -6/Factory (discovered 3 exits: *Fac / Low x2) -5/Factory (discovered 4 exits: *Upp x2 / Ext x2) -5/Upper Caves -5/Upper Caves -5/Zhirov -4/Proximity Caves -4/Factory (discovered 4 exits: Res x3 / [*Upp]) -4/Upper Caves -4/Upper Caves -4/Warlord -3/Proximity Caves -3/Research -3/Testing History --------- Turn | Location | Event 1 | -11/Scrapyard | Discovered new exit (range 0) 1 | -11/Scrapyard | Entered Materials 63 | -10/Materials | Discovered new exit (range 16) 76 | -10/Materials | Met 8R-AWN 84 | -10/Materials | Entered Mines 86 | -10/Mines | Followed 8R-AWN into the Mines 113 | -10/Mines | Assisted by bots powering up and referring to "LRC-V3" 161 | -10/Mines | Assembled infested the area 166 | -10/Mines | Assisted by a Guerilla fighting off Assembled 239 | -10/Mines | Lost 3 allies 263 | -10/Mines | Discovered new exit (range 5) 269 | -10/Mines | Entered Exiles 299 | -10/Exiles | Welcomed by 8R-AWN 304 | -10/Exiles | Build established: Mutant 320 | -10/Exiles | Met EX-HEX 354 | -10/Exiles | Met EX-BIN 371 | -10/Exiles | Aligned with FarCom system 372 | -10/Exiles | Given EX-Vault access code 402 | -10/Exiles | Opened EX-Vault 410 | -10/Exiles | Found Trap Reconfigurator 435 | -10/Exiles | Warned to stay clear of 0b10 Research branches 474 | -10/Exiles | Met EX-DEC 479 | -10/Exiles | Learned location of Zion (-7) 516 | -10/Exiles | Discovered new exit (range 10) 527 | -10/Exiles | Left Exiles lab with Trap Reconfigurator 527 | -10/Exiles | Entered Mines 532 | -9/Mines | Learned Materials terminal intel 710 | -9/Mines | Discovered new exit (range 2) 712 | -9/Mines | Entered Materials 712 | -8/Materials | Evolved 4 slots: Propulsion x1, Utility x3 713 | -8/Materials | Loaded intel: 12 terminal locations 1269 | -8/Materials | Discovered new exit (range 4) 1276 | -8/Materials | Core integrity fell below 50% 1291 | -8/Materials | Core integrity fell below 20% 1304 | -8/Materials | Found Prototype Device 1304 | -8/Materials | Identified Active Sensor Suite 1305 | -8/Materials | Identified exit to Factory 1314 | -8/Materials | Entered Factory 1314 | -7/Factory | Evolved 2 slots: Propulsion x1, Utility x1 1315 | -7/Factory | Identified exit to Lower Caves 1317 | -7/Factory | Lost 6 parts (3n3u) 1551 | -7/Factory | Build established: Scavenger-Mutant 1870 | -7/Factory | Build established: Mutant 2020 | -7/Factory | Identified exit to Garrison 2020 | -7/Factory | Entered Garrison 2063 | -7/Garrison | Garrison Relay disabled 2127 | -7/Garrison | Triggered checkpoint 2167 | -7/Garrison | Destroyed 12 combat bots 2168 | -7/Garrison | Triggered checkpoint 2184 | -7/Garrison | Triggered checkpoint 2215 | -7/Garrison | Identified exit to Factory 2301 | -7/Garrison | System corruption reached 10% 2421 | -7/Garrison | Entered Factory 2421 | -6/Factory | Evolved 2 slots: Power x1, Utility x1 2902 | -6/Factory | Build established: Scavenger-Mutant 3358 | -6/Factory | Repaired Broken Dynamic Insulation System 4110 | -6/Factory | Build established: Mutant 4119 | -6/Factory | Identified exit to Lower Caves 4171 | -6/Factory | First assault squad dispatched 4485 | -6/Factory | Lost 7 parts (2p1n3u1w) 4524 | -6/Factory | Discovered new exit (range 21) 4617 | -6/Factory | Entered another Factory area 4617 | -5/Factory | Evolved 2 slots: Power x1, Propulsion x1 4645 | -5/Factory | Lost 6 parts (1p1n1u3w) 4672 | -5/Factory | Discovered new exit (range 17) 4786 | -5/Factory | System corruption reached 10% 4917 | -5/Factory | First assault squad dispatched 5087 | -5/Factory | Build established: Scavenger-Mutant 5129 | -5/Factory | Identified exit to Upper Caves 5129 | -5/Factory | Identified exit to Extension 5138 | -5/Factory | Entered Upper Caves 5221 | -5/Upper Caves | System corruption reached 30% 5417 | -5/Upper Caves | Acquired the password to a Derelict Tinkerer's latest research 5425 | -5/Upper Caves | Found Prototype Special Weapon 5545 | -5/Upper Caves | Discovered new exit (range 11) 5558 | -5/Upper Caves | Entered another Upper Caves area 5560 | -5/Upper Caves | Attracted the attention of an 0b10 checkpoint 5578 | -5/Upper Caves | Learned 4 Factory zone layouts 5719 | -5/Upper Caves | Discovered new exit (range 16) 5769 | -5/Upper Caves | Entered Zhirov 5771 | -5/Zhirov | Discovered new exit (range 3) 5792 | -5/Zhirov | Met Zhirov 5890 | -5/Zhirov | Identified Molecular Deconstructor 5915 | -5/Zhirov | Found Alien Artifact 5915 | -5/Zhirov | Identified Integrated Dissipator 5915 | -5/Zhirov | Installed Integrated Dissipator, increased core heat dissipation (+20) 5932 | -5/Zhirov | Found Alien Artifact 6015 | -5/Zhirov | Learned location of Quarantine (-2) 6015 | -5/Zhirov | Learned location of Command (-1) 6015 | -5/Zhirov | Learned location of Testing (-3) 6022 | -5/Zhirov | Zhirov requested help retrieving the SGEMP Prototype 6081 | -5/Zhirov | Entered Proximity Caves 6084 | -4/Proximity Caves | Spotter reported a threat 6084 | -4/Proximity Caves | Spotter reported a threat 6183 | -4/Proximity Caves | Spotter reported a threat 6224 | -4/Proximity Caves | Spotter reported a threat 6245 | -4/Proximity Caves | Spotter reported a threat 6315 | -4/Proximity Caves | Discovered new exit (range 18) 6337 | -4/Proximity Caves | Entered Factory 6337 | -4/Factory | Evolved 2 slots: Utility x1, Weapon x1 6338 | -4/Factory | Identified exit to Research 6587 | -4/Factory | Search patrols dispatched 6837 | -4/Factory | Search patrols dispatched 6938 | -4/Factory | Spotted B-86 Titan 7407 | -4/Factory | Discovered new exit (range 12) 7420 | -4/Factory | Entered Upper Caves 7665 | -4/Upper Caves | Identified Transdimensional Reconstructor 7665 | -4/Upper Caves | Warped through subspace 7843 | -4/Upper Caves | Attracted the attention of an 0b10 checkpoint 7887 | -4/Upper Caves | Discovered new exit (range 8) 7893 | -4/Upper Caves | Lost 3 parts (3u) 7894 | -4/Upper Caves | Entered another Upper Caves area 7896 | -4/Upper Caves | Attracted the attention of an 0b10 checkpoint 7961 | -4/Upper Caves | Learned Research trap positions 8514 | -4/Upper Caves | Spotted B-86 Titan 8536 | -4/Upper Caves | Build established: Gunner 8601 | -4/Upper Caves | Destroyed B-86 Titan 8629 | -4/Upper Caves | Lost 4 parts (1p1n1u1w) 8673 | -4/Upper Caves | System corruption reached 10% 8872 | -4/Upper Caves | Attracted the attention of an 0b10 base 8947 | -4/Upper Caves | Encountered a Warlord checkpoint 9572 | -4/Upper Caves | Discovered new exit (range 6) 9579 | -4/Upper Caves | Entered Warlord 9620 | -4/Warlord | Build established: Scavenger-Mutant 9621 | -4/Warlord | System corruption cleaned by Quarantine Array 9803 | -4/Warlord | Found Prototype Device 9803 | -4/Warlord | Identified Minesniffer Drone Bay 9808 | -4/Warlord | Found Minesniffer Drone Bay 9811 | -4/Warlord | Found Minesniffer Drone Bay 9924 | -4/Warlord | Build established: Scavenger-Gunner 10159 | -4/Warlord | Visited the Vortex Lab 10170 | -4/Warlord | Warlord's base attacked by MAIN.C 10177 | -4/Warlord | Found Prototype Energy Cannon 10177 | -4/Warlord | Identified Vortex Cannon 10181 | -4/Warlord | Found Vortex Cannon 10241 | -4/Warlord | Met Warlord 10363 | -4/Warlord | Found Prototype Reactor 10363 | -4/Warlord | Identified Vortex Chain Reactor 10370 | -4/Warlord | Found Prototype Processor 10370 | -4/Warlord | Identified Exp. Armor Integrity Analyzer 10379 | -4/Warlord | Found Prototype Processor 10379 | -4/Warlord | Identified Exp. Targeting Computer 10390 | -4/Warlord | Found Prototype Device 10390 | -4/Warlord | Identified Thermal Barrier 10520 | -4/Warlord | Warlord forces counterattacked 10583 | -4/Warlord | Opened side exit 10596 | -4/Warlord | Spotted Striker 10597 | -4/Warlord | Spotted B-90 Cyclops 10603 | -4/Warlord | Spotted Executioner 10615 | -4/Warlord | Destroyed Striker 10682 | -4/Warlord | Lost 5 allies 10845 | -4/Warlord | Warlord base infiltrated, sounded retreat 10846 | -4/Warlord | Enhanced Grunt warped into view 10846 | -4/Warlord | Enhanced Grunt warped into view 10846 | -4/Warlord | Enhanced Grunt warped into view 10846 | -4/Warlord | Enhanced Demolisher warped into view 10846 | -4/Warlord | Enhanced Demolisher warped into view 10846 | -4/Warlord | Enhanced Demolisher warped into view 10888 | -4/Warlord | Lost 5 allies 10927 | -4/Warlord | Spotted Executioner 10928 | -4/Warlord | Destroyed Executioner 10958 | -4/Warlord | Spotted Executioner 10979 | -4/Warlord | Spotted Striker 10999 | -4/Warlord | Found Prototype Launcher 10999 | -4/Warlord | Identified Chain Missile Launcher 11014 | -4/Warlord | Spotted Executioner 11020 | -4/Warlord | Destroyed Executioner 11050 | -4/Warlord | Discovered new exit (range 20) 11071 | -4/Warlord | Spotted Executioner 11086 | -4/Warlord | Entered Proximity Caves 11115 | -3/Proximity Caves | Lost 7 allies 11120 | -3/Proximity Caves | Lost 3 parts (3w) 11121 | -3/Proximity Caves | Destroyed 7 combat bots 11337 | -3/Proximity Caves | Spotted B-86 Titan 11344 | -3/Proximity Caves | Build established: Scavenger-Mutant 11404 | -3/Proximity Caves | Core integrity fell below 50% 11464 | -3/Proximity Caves | Discovered exit to Research (range 14) 11478 | -3/Proximity Caves | Entered Research 11478 | -3/Research | Evolved 2 slots: Utility x1, Weapon x1 11479 | -3/Research | Loaded intel: 73 trap records 11489 | -3/Research | Lost 8 parts (2p3n3u) 12029 | -3/Research | Discovered new exit (range 22) 12036 | -3/Research | System corruption reached 10% 12099 | -3/Research | Lost 4 parts (1p2n1w) 12186 | -3/Research | Lost 4 parts (1p2n1u) 12314 | -3/Research | Entered Testing 12315 | -3/Testing | Maximum security lockdown engaged 12437 | -3/Testing | Released all parts (17) 12445 | -3/Testing | Self-destructed Last Messages --------------- 12435_ L-61 Swordsman unfolds itself. 12435_ M-36 Artificer unfolds itself. 12437_ Released Lgt. Particle Reactor. 12437_ Released Hvy. Armor Plating. 12437_ Released Quantum Rifle. 12437_ Released Particle Reactor. 12437_ Released Plasma Rifle. 12437_ Released Imp. Focal Shield. 12437_ Released Med. Storage Unit. 12437_ Released Exp. Targeting Computer. 12437_ Released Exp. Armor Integrity Analyzer. 12437_ Released Enh. Optical Array. 12437_ Released Adv. Targeting Computer. 12437_ Released Flexi-carbon Leg. 12437_ Released Med. Treads. 12437_ Released Lgt. Particle Reactor. 12437_ Released Hacking Suite. 12437_ Released Matter Neutralizer. 12437_ Released Hvy. Phase Cannon. 12444_ JNTGB&%BUDO0N 8L%MYMPQO>0FVQI70SQOQA#XY Map ----- +----------------------------------------------------+ | ?????????????????????????????????????????????????? | | ?????????????????????????????????????????????????? | | ?????????????????????????????????????????????????? | | ???????##################?##?????????????????????? | | ???????# """"""" # """T""" #?????????????????????? | | ???????# """"""" # """ """ #?????????????????????? | | ???????# """"""" # #?????????????????????? | | ???????# # #?????????????????????? | | ???????# # """ """ #?????????????????????? | | ???????# [ # """ """ #??? #????????????????? | | ???????# # """ """ #?? #????????????????? | | ???????# # ?? #????????????????? | | ???????#####+####"#=##""#### = ######???????????? | | ????????# ![!! [%[ C ??????? | | ????????# !!*[/ [C!C l ??????? | | ????????# !*!* gC[ " ??????? | | ????????# ]=] gg C "% ???????? | | ????????####+###### ###+###### ###+#???????? | | ?????????? ???# # #????? #???????????? | | ????????# """ ?# # """ #??????????????????? | | ????????# """ ## # """ #??????????????????? | | ????????# """ ## # """ #??????????????????? | | ????????# ## + """ ###????????????????? | | ????????# """ ## # """ ""#???o????????????? | | ????????# """ ####### ""#????????????????? | | ????????# """ #?????# @"" T"#????????????????? | | ????????# #?????# """ ""#????????????????? | | ????????###???####?????# "T ""#????????????????? | | ???????????????????????# """ ##?????????????????? | | ???????????????????????# "" #??????????????????? | | ???????????????????????# #??????????????????? | | ???????????????????????#####?##??????????????????? | | ?????????????????????????????????????????????????? | | ?????????????????????????????????????????????????? | | ?????????????????????????????????????????????????? | | ??????????????????????????????????????o??????????? | | ?????????????????????????????????????????????????? | | ?????????????????????????????????????????????????? | | ?????????????????????????????????????????????????? | | ?????????????????????????????????????????????????? | | ?????????????????????????????????????????????????? | | ?????????????????????????????????????????????????? | | ?????????????????????????????????????????????????? | | ?????????????????????????????????????????????????? | | ?????????????????????????????????????????????????? | | ?????????????????????????????????????????????????? | | ?????????????????????????????????????????????????? | | ?????????????????????????????????????????????????? | | ?????????????????????????????????????????????????? | | ?????????????????????????????????????????????????? | +----------------------------------------------------+ Best States ------------- Heat Dissipation 97 Coolant Potential 120 Energy Generation 69 Energy Capacity 1415 Matter Stores 300 Matter Capacity 300 Sight Range 22 Terrain Scan Range 16 Terrain Scan Density 10 EM Shielding 2 Corruption Containment 12 Armor Coverage 600 Resistance: KI 25 Resistance: TH 50 Weapon Shielding 66 Evasion (%) 70 Targeting Accuracy 26 Armor Integrity Analysis 50 Recoil Reduction 4 Particle Charging 30 Offensive Hacking 20 Defensive Hacking 10 Item Schematics ----------------- Assault Drone Bay | -5/Zhirov | Free Exp. Heat Sink | -5/Zhirov | Free Exp. Optical Array | -5/Zhirov | Free Imp. Arc Thrower | -5/Zhirov | Free Cld. Proton Cannon | -4/Factory | Scanalyzed Robot Schematics ------------------ None Fabricated ------------ Nothing Repaired ---------- Dynamic Insulation System | 88% | -6/Factory | Broken Alien Tech Used ----------------- Integrated Dissipator Transdimensional Reconstructor Achievements -------------- None Challenges ------------ None Game ------ Seed HardenedDecoderShredder Manual? 0 Play Time 01:22:21 Cumulative 1162.6 hours Start 2025.08.07 @ 10:55:37 End 2025.08.08 @ 10:29:30 Sessions 5 Manual Loads 0 Difficulty Rogue Special Mode None Game No. 1431 Rogue 1147 Adventurer 124 Explorer 160 Win Type - Total 52 Types 38/0/8/4/1/0/0/1/0/0 Lore% 92 Gallery% 88 Achievement% 81 Wizard Run 0 Options --------- Layout 0 ASCII 0 Keyboard 1 Movement Numpad Keybinds 0 Fullscreen 2 Font 18/X11 Map View 76x50 Zoom Use 0% Tactical HUD 1 Map Filters NONE Filters NONE Steam 1 RUN: ebf2a6f1-a3b5-41e7-b727-69ff9cbab8fc